[Event "Oceania Zonal Women 2023"]
[Site "Melbourne"]
[Date "2023.01.24"]
[Round "3.5"]
[White "Gratchev, Elizaveta"]
[Black "Middleton, Jody"]
[Result "0-1"]
[ECO "A08"]
[WhiteElo "1385"]
[BlackElo "1748"]
[Annotator "NA COMBH"]
[PlyCount "76"]
[EventDate "2023.01.09"]
[EventType "swiss"]
[EventCountry "AUS"]
[SourceTitle "playchess.com"]
[Source "ChessBase"]
[SourceQuality "1"]
[TimeControl "5400+30"]

1. e4 {[%emt 0:00:03]} e6 {[%emt 0:00:10]} 2. d3 {[%emt 0:00:08]} d5 {[%emt 0:00:06]} 3. Nd2 {[%emt 0:00:07]} c5 {[%emt 0:00:14]} 4. Ngf3 {[%emt 0:00:18]} Nc6 {[%emt 0:00:47]} 5. g3 {[%emt 0:00:09]} Bd6 {[%emt 0:00:48]} 6. Bg2 {[%emt 0:00:35]} Nge7 {[%emt 0:00:54]} 7. O-O {[%emt 0:00:16]} O-O {[%emt 0:00:22]} 8. Re1 {[%emt 0:02:54]} Ng6 {[%emt 0:02:09]} 9. h4 {[%emt 0:05:01]} d4 {[%emt 0:06:46]} 10. Nc4 {[%emt 0:03:36]} Bc7 {[%emt 0:00:22]} 11. h5 {[%emt 0:01:03]} Nge5 {[%emt 0:01:10]} 12. h6 {[%emt 0:06:27]} g6 {[%emt 0:03:29]} 13. Ncxe5 {[%emt 0:03:49]} Nxe5 {[%emt 0:00:11]} 14. Bf4 {[%emt 0:02:01]} Nxf3+ {[%emt 0:00:58]} 15. Qxf3 {[%emt 0:00:55]} e5 {[%emt 0:00:28]} 16. Bd2 {[%emt 0:00:38]} Bd6 {[%emt 0:00:55]} 17. Qe2 {[%emt 0:07:25]} Re8 {[%emt 0:04:28]} 18. Rf1 {[%emt 0:01:27]} Bf8 {[%emt 0:05:33]} 19. Rae1 {[%emt 0:06:21]} a5 {[%emt 0:04:10]} 20. Bf3 {[%emt 0:06:10]} Ra6 {[%emt 0:08:05]} 21. Bg4 {[%emt 0:04:51]} f5 {[%emt 0:01:11]} 22. exf5 {[%emt 0:03:41]} gxf5 {[%emt 0:01:07]} 23. Bh5 {[%emt 0:01:25]} Ree6 {[%emt 0:00:17]} 24. Qf3 {[%emt 0:01:25]} Qf6 {[%emt 0:15:35]} 25. g4 {[%emt 0:09:08]} Bxh6 {[%emt 0:05:08]} 26. Bxh6 {[%emt 0:00:52]} Qxh6 {[%emt 0:00:08]} 27. gxf5 {[%emt 0:01:53]} Qg5+ {[%emt 0:10:15]} 28. Kh2 {[%emt 0:00:35]} Qh4+ {[%emt 0:02:36]} 29. Kg2 {[%emt 0:01:40]} Rh6 {[%emt 0:05:54]} 30. Rh1 {[%emt 0:11:03]} Qg5+ {[%emt 0:15:29]} 31. Kf1 {[%emt 0:03:26]} Qxf5 {[%emt 0:00:27]} 32. Qd5+ {[%emt 0:01:49]} Qe6 {[%emt 0:02:04]} 33. Qd8+ {[%emt 0:01:38]} Kg7 {[%emt 0:00:13]} 34. Rg1+ {[%emt 0:00:50]} Rg6 {[%emt 0:00:15]} 35. Bxg6 {[%emt 0:00:41]} Qh3+ {[%emt 0:01:44]} 36. Ke2 {[%emt 0:07:59]} Bg4+ {[%emt 0:00:29]} 37. f3 {[%emt 0:00:26]} Qxf3+ {[%emt 0:00:21]} 38. Kd2 {[%emt 0:01:08]} Qf4+ {[%emt 0:00:07]} 0-1

[Event "Oceania Zonal Women 2023"]
[Site "Melbourne"]
[Date "2023.01.24"]
[Round "3.6"]
[White "Zeng, Vera"]
[Black "Lu, Lillian"]
[Result "1/2-1/2"]
[ECO "D13"]
[WhiteElo "1527"]
[BlackElo "1689"]
[Annotator "NA COMBH"]
[PlyCount "74"]
[EventDate "2023.01.09"]
[EventType "swiss"]
[EventCountry "AUS"]
[SourceTitle "playchess.com"]
[Source "ChessBase"]
[SourceQuality "1"]
[TimeControl "5400+30"]

1. d4 {[%emt 0:00:02]} d5 {[%emt 0:00:07]} 2. c4 {[%emt 0:00:06]} c6 {[%emt 0:00:05]} 3. cxd5 {[%emt 0:00:07]} cxd5 {[%emt 0:00:06]} 4. Nc3 {[%emt 0:00:07]} Nf6 {[%emt 0:00:13]} 5. Nf3 {[%emt 0:00:07]} Nc6 {[%emt 0:00:49]} 6. Bf4 {[%emt 0:00:17]} a6 {[%emt 0:00:55]} 7. e3 {[%emt 0:00:17]} e6 {[%emt 0:02:20]} 8. Bd3 {[%emt 0:00:23]} Be7 {[%emt 0:04:10]} 9. O-O {[%emt 0:00:22]} b5 {[%emt 0:00:52]} 10. Rc1 {[%emt 0:01:46]} Bb7 {[%emt 0:00:46]} 11. a3 {[%emt 0:01:00]} b4 {[%emt 0:04:44]} 12. axb4 {[%emt 0:00:48]} Nxb4 {[%emt 0:00:17]} 13. Na4 {[%emt 0:01:48]} Bd6 {[%emt 0:12:34]} 14. Bxd6 {[%emt 0:01:17]} Qxd6 {[%emt 0:00:13]} 15. Nc5 {[%emt 0:00:37]} Bc6 {[%emt 0:02:12]} 16. Ne5 {[%emt 0:01:39]} Nxd3 {[%emt 0:02:15]} 17. Nexd3 {[%emt 0:02:10]} O-O {[%emt 0:01:26]} 18. Qd2 {[%emt 0:01:20]} Bb5 {[%emt 0:02:24]} 19. Ra1 {[%emt 0:01:21]} Ne4 {[%emt 0:00:33]} 20. Qc2 {[%emt 0:01:28]} Rfc8 {[%emt 0:01:29]} 21. b4 {[%emt 0:02:56]} Qb6 {[%emt 0:12:41]} 22. Rfb1 {[%emt 0:00:44]} a5 {[%emt 0:10:50]} 23. bxa5 {[%emt 0:01:47]} Rxa5 {[%emt 0:00:20]} 24. Qb2 {[%emt 0:01:15]} Nd6 {[%emt 0:06:56]} 25. Rxa5 {[%emt 0:02:48]} Qxa5 {[%emt 0:00:05]} 26. Nb7 {[%emt 0:03:29]} Nxb7 {[%emt 0:03:23]} 27. Qxb5 {[%emt 0:00:19]} Qxb5 {[%emt 0:00:34]} 28. Rxb5 {[%emt 0:00:08]} Nd6 {[%emt 0:00:07]} 29. Rc5 {[%emt 0:00:55]} Kf8 {[%emt 0:06:32]} 30. Kf1 {[%emt 0:00:52]} Rb8 {[%emt 0:01:30]} 31. Ke2 {[%emt 0:00:32]} Rb7 {[%emt 0:00:41]} 32. Ra5 {[%emt 0:01:20]} g6 {[%emt 0:02:45]} 33. Kf3 {[%emt 0:01:12]} Kg7 {[%emt 0:01:27]} 34. Nc5 {[%emt 0:00:39]} Re7 {[%emt 0:03:00]} 35. Nd3 {[%emt 0:01:03]} Ne4 {[%emt 0:01:28]} 36. Ke2 {[%emt 0:01:13]} Rc7 {[%emt 0:00:43]} 37. Nc5 {[%emt 0:02:12]} Nd6 {[%emt 0:01:07]} 1/2-1/2